[Event "Live Chess"]
[Site "Chess.com"]
[Date "2023.05.21"]
[Round "-"]
[White "romchyk1219"]
[Black "Pablo_dmp"]
[Result "0-1"]
[WhiteElo "633"]
[BlackElo "1862"]
[TimeControl "300"]
[EndTime "18:17:13 PDT"]
[Termination "Pablo_dmp won by checkmate"]

1. e4 {[%clk 0:04:58]} 1... c5 {[%clk 0:04:53.8]} 2. Nf3 {[%clk 0:04:54.3]} 2...
Nc6 {[%clk 0:04:50.9]} 3. g3 {[%clk 0:04:52.5]} 3... g6 {[%clk 0:04:48.6]} 4.
Bg2 {[%clk 0:04:50]} 4... Bg7 {[%clk 0:04:47.9]} 5. O-O {[%clk 0:04:48.8]} 5...
Nf6 {[%clk 0:04:47]} 6. Nc3 {[%clk 0:04:46.2]} 6... d6 {[%clk 0:04:44.1]} 7. d3
{[%clk 0:04:45.2]} 7... Bg4 {[%clk 0:04:41.4]} 8. Bf4 {[%clk 0:04:40.9]} 8...
Nh5 {[%clk 0:04:35.3]} 9. Be3 {[%clk 0:04:37.6]} 9... O-O {[%clk 0:04:30.7]} 10.
h3 {[%clk 0:04:36.6]} 10... Bd7 {[%clk 0:04:25.8]} 11. g4 {[%clk 0:04:33.8]}
11... Nf6 {[%clk 0:04:24]} 12. Bg5 {[%clk 0:04:28.6]} 12... Ne8 {[%clk
0:04:19.3]} 13. Nd5 {[%clk 0:04:11.3]} 13... f6 {[%clk 0:04:10.9]} 14. Bd2
{[%clk 0:03:58.2]} 14... e6 {[%clk 0:04:09.3]} 15. Nf4 {[%clk 0:03:55.8]} 15...
e5 {[%clk 0:04:07.1]} 16. Ne2 {[%clk 0:03:54.3]} 16... Nc7 {[%clk 0:04:02.9]}
17. c3 {[%clk 0:03:48.9]} 17... Ne6 {[%clk 0:04:01.3]} 18. d4 {[%clk 0:03:40.8]}
18... exd4 {[%clk 0:03:59.8]} 19. cxd4 {[%clk 0:03:40.2]} 19... cxd4 {[%clk
0:03:55.5]} 20. Nexd4 {[%clk 0:03:39.6]} 20... Nexd4 {[%clk 0:03:54]} 21. Nxd4
{[%clk 0:03:39]} 21... Nxd4 {[%clk 0:03:53.8]} 22. Bb4 {[%clk 0:03:26.8]} 22...
Qb6 {[%clk 0:03:47.3]} 23. Bd2 {[%clk 0:03:25]} 23... Bb5 {[%clk 0:03:42.7]} 24.
Re1 {[%clk 0:03:23.3]} 24... Rae8 {[%clk 0:03:39.4]} 25. Be3 {[%clk 0:03:21.5]}
25... f5 {[%clk 0:03:32.4]} 26. gxf5 {[%clk 0:03:20.5]} 26... gxf5 {[%clk
0:03:32.3]} 27. exf5 {[%clk 0:03:20.1]} 27... Rxf5 {[%clk 0:03:27.7]} 28. Be4
{[%clk 0:03:03.9]} 28... Rff8 {[%clk 0:03:06.9]} 29. Bxh7+ {[%clk 0:02:54.3]}
29... Kxh7 {[%clk 0:03:03.5]} 30. Bxd4 {[%clk 0:02:50]} 30... Rxe1+ {[%clk
0:03:00]} 31. Qxe1 {[%clk 0:02:48.6]} 31... Bxd4 {[%clk 0:02:59.3]} 32. Qe7+
{[%clk 0:02:43.8]} 32... Kh8 {[%clk 0:02:51.2]} 33. Qxf8+ {[%clk 0:02:38.5]}
33... Kh7 {[%clk 0:02:50.3]} 34. Qf7+ {[%clk 0:02:31.9]} 34... Kh6 {[%clk
0:02:48.5]} 35. Qf4+ {[%clk 0:02:27.8]} 35... Kg6 {[%clk 0:02:46.2]} 36. Qg4+
{[%clk 0:02:24.8]} 36... Kf6 {[%clk 0:02:44.5]} 37. Qf4+ {[%clk 0:02:19.2]}
37... Ke7 {[%clk 0:02:41]} 38. Qh4+ {[%clk 0:02:09.1]} 38... Kd7 {[%clk
0:02:37.8]} 39. Qh7+ {[%clk 0:02:04.4]} 39... Ke6 {[%clk 0:02:36.2]} 40. Qh6+
{[%clk 0:02:01.9]} 40... Kd5 {[%clk 0:02:32]} 41. Qg5+ {[%clk 0:01:57.4]} 41...
Kc6 {[%clk 0:02:30.3]} 42. Qd2 {[%clk 0:01:47]} 42... Kd7 {[%clk 0:02:15.8]} 43.
Qh6 {[%clk 0:01:43]} 43... Qc5 {[%clk 0:02:13.2]} 44. Qh7+ {[%clk 0:01:36.4]}
44... Ke6 {[%clk 0:02:10.6]} 45. Qh6+ {[%clk 0:01:33]} 45... Kf7 {[%clk
0:02:07.8]} 46. Qh7+ {[%clk 0:01:30.8]} 46... Kf8 {[%clk 0:02:06.5]} 47. Qh6+
{[%clk 0:01:27.7]} 47... Bg7 {[%clk 0:02:01.8]} 48. Qf4+ {[%clk 0:01:20.8]}
48... Kg8 {[%clk 0:01:59.2]} 49. Kg2 {[%clk 0:01:16.9]} 49... Bc6+ {[%clk
0:01:57.5]} 50. Kg3 {[%clk 0:01:15]} 50... Be5 {[%clk 0:01:55.7]} 51. Qxe5
{[%clk 0:01:13.6]} 51... dxe5 {[%clk 0:01:55.5]} 52. Kg4 {[%clk 0:01:13.2]}
52... Qxf2 {[%clk 0:01:53.7]} 53. Kh5 {[%clk 0:01:11.9]} 53... Be8+ {[%clk
0:01:51.3]} 54. Kg5 {[%clk 0:01:10.3]} 54... Qf4# {[%clk 0:01:49.7]} 0-1

[Event "Live Chess"]
[Site "Chess.com"]
[Date "2023.05.21"]
[Round "-"]
[White "KeithArkell"]
[Black "Tushinskiy"]
[Result "0-1"]
[WhiteElo "2589"]
[BlackElo "2174"]
[TimeControl "300"]
[EndTime "18:17:30 PDT"]
[Termination "Tushinskiy won by resignation"]

1. d4 {[%clk 0:04:57.2]} 1... d5 {[%clk 0:04:57.6]} 2. Nf3 {[%clk 0:04:55.7]}
2... c6 {[%clk 0:04:57.1]} 3. c4 {[%clk 0:04:54.9]} 3... e6 {[%clk 0:04:55.7]}
4. cxd5 {[%clk 0:04:53.5]} 4... exd5 {[%clk 0:04:54.7]} 5. Nc3 {[%clk
0:04:52.7]} 5... Nf6 {[%clk 0:04:54.1]} 6. Qc2 {[%clk 0:04:51.1]} 6... Bd6
{[%clk 0:04:52.9]} 7. Bg5 {[%clk 0:04:50]} 7... Bg4 {[%clk 0:04:52.1]} 8. Ne5
{[%clk 0:04:47.2]} 8... Bh5 {[%clk 0:04:50.5]} 9. Qb3 {[%clk 0:04:45.7]} 9...
Qc7 {[%clk 0:04:47.9]} 10. Bxf6 {[%clk 0:04:43.9]} 10... gxf6 {[%clk 0:04:47.8]}
11. Nd3 {[%clk 0:04:42.6]} 11... Nd7 {[%clk 0:04:46.5]} 12. e3 {[%clk
0:04:41.7]} 12... O-O {[%clk 0:04:44.4]} 13. Be2 {[%clk 0:04:41]} 13... Bg6
{[%clk 0:04:42.9]} 14. O-O {[%clk 0:04:39]} 14... Bxh2+ {[%clk 0:04:40.7]} 15.
Kh1 {[%clk 0:04:37.3]} 15... Bd6 {[%clk 0:04:40.1]} 16. Rac1 {[%clk 0:04:36.1]}
16... Qb8 {[%clk 0:04:38.8]} 17. g3 {[%clk 0:04:18.4]} 17... Re8 {[%clk
0:04:34.2]} 18. Kg2 {[%clk 0:04:15.2]} 18... f5 {[%clk 0:04:30.6]} 19. Bf3
{[%clk 0:04:12.8]} 19... Nf6 {[%clk 0:04:29.3]} 20. Nf4 {[%clk 0:04:03.4]} 20...
Bxf4 {[%clk 0:04:27.6]} 21. exf4 {[%clk 0:04:02.6]} 21... Kg7 {[%clk 0:04:20.8]}
22. Rfe1 {[%clk 0:04:01.2]} 22... Rxe1 {[%clk 0:04:18.6]} 23. Rxe1 {[%clk
0:03:59.8]} 23... Qc7 {[%clk 0:04:17.6]} 24. Nd1 {[%clk 0:03:50.5]} 24... Re8
{[%clk 0:04:14.5]} 25. Rxe8 {[%clk 0:03:48.8]} 25... Nxe8 {[%clk 0:04:14.4]} 26.
Ne3 {[%clk 0:03:47.9]} 26... Nd6 {[%clk 0:04:11]} 27. Qa3 {[%clk 0:03:42.4]}
27... a6 {[%clk 0:04:09.5]} 28. Qc5 {[%clk 0:03:39.4]} 28... Qd8 {[%clk
0:04:00.1]} 29. a4 {[%clk 0:03:34.6]} 29... h5 {[%clk 0:03:54]} 30. Kg1 {[%clk
0:03:29.1]} 30... Qf6 {[%clk 0:03:48]} 31. b3 {[%clk 0:03:18.9]} 31... h4 {[%clk
0:03:33.3]} 32. gxh4 {[%clk 0:02:42.9]} 32... Ne4 {[%clk 0:03:31.6]} 33. Bxe4
{[%clk 0:02:42.3]} 33... fxe4 {[%clk 0:03:31.5]} 34. Ng2 {[%clk 0:02:35]} 34...
Bh5 {[%clk 0:03:28.4]} 35. Qc3 {[%clk 0:02:20.1]} 35... Bf3 {[%clk 0:03:27]} 36.
Ne1 {[%clk 0:02:13.4]} 36... Qg6+ {[%clk 0:02:53.7]} 37. Kf1 {[%clk 0:02:11.2]}
37... Qg4 {[%clk 0:02:49.4]} 38. Nxf3 {[%clk 0:02:07.5]} 38... exf3 {[%clk
0:02:49.3]} 39. Qe3 {[%clk 0:02:02.1]} 39... Kh7 {[%clk 0:02:46.1]} 40. a5
{[%clk 0:01:49.4]} 40... Kg8 {[%clk 0:02:30.1]} 41. Ke1 {[%clk 0:01:47.9]} 41...
Qxh4 {[%clk 0:02:13.1]} 42. Kd2 {[%clk 0:01:47.8]} 42... Qg4 {[%clk 0:02:10.7]}
43. Qxf3 {[%clk 0:01:47.7]} 43... Qxf3 {[%clk 0:02:09.5]} 0-1

[Event "Live Chess"]
[Site "Chess.com"]
[Date "2023.05.21"]
[Round "-"]
[White "wot-not"]
[Black "raminguy"]
[Result "0-1"]
[WhiteElo "1541"]
[BlackElo "1939"]
[TimeControl "300"]
[EndTime "18:17:42 PDT"]
[Termination "raminguy won by resignation"]

1. d4 {[%clk 0:04:58.3]} 1... d5 {[%clk 0:04:59]} 2. c4 {[%clk 0:04:57.6]} 2...
e6 {[%clk 0:04:57.4]} 3. Nc3 {[%clk 0:04:57.1]} 3... a6 {[%clk 0:04:55.9]} 4.
cxd5 {[%clk 0:04:56.5]} 4... exd5 {[%clk 0:04:55]} 5. Bf4 {[%clk 0:04:52.9]}
5... c6 {[%clk 0:04:53.9]} 6. e3 {[%clk 0:04:52]} 6... Bd6 {[%clk 0:04:53.1]} 7.
Bd3 {[%clk 0:04:51.1]} 7... Nf6 {[%clk 0:04:51.9]} 8. Bxd6 {[%clk 0:04:49.4]}
8... Qxd6 {[%clk 0:04:51.8]} 9. Nf3 {[%clk 0:04:47.7]} 9... O-O {[%clk
0:04:51.2]} 10. O-O {[%clk 0:04:46.8]} 10... Bg4 {[%clk 0:04:49.8]} 11. h3
{[%clk 0:04:42.5]} 11... Bh5 {[%clk 0:04:48]} 12. Be2 {[%clk 0:04:41.2]} 12...
Nbd7 {[%clk 0:04:46.2]} 13. a3 {[%clk 0:04:37.7]} 13... Rab8 {[%clk 0:04:44.6]}
14. Nh2 {[%clk 0:04:29.8]} 14... Bxe2 {[%clk 0:04:42.5]} 15. Qxe2 {[%clk
0:04:29.2]} 15... Rfe8 {[%clk 0:04:41.5]} 16. Ng4 {[%clk 0:04:27.7]} 16... Ne4
{[%clk 0:04:40.4]} 17. Nxe4 {[%clk 0:04:26.2]} 17... Rxe4 {[%clk 0:04:36.2]} 18.
Rac1 {[%clk 0:04:17]} 18... Rbe8 {[%clk 0:04:34.1]} 19. Nh2 {[%clk 0:04:03.5]}
19... Rxd4 {[%clk 0:04:31.5]} 20. Nf3 {[%clk 0:03:59.9]} 20... Rde4 {[%clk
0:04:30.1]} 21. Qd3 {[%clk 0:03:50]} 21... h6 {[%clk 0:04:28.1]} 22. Nd4 {[%clk
0:03:43.2]} 22... Qg6 {[%clk 0:04:20.1]} 23. Qb3 {[%clk 0:03:33.7]} 23... Rb8
{[%clk 0:04:05.2]} 24. Ne2 {[%clk 0:02:56.4]} 24... Ne5 {[%clk 0:03:23.7]} 25.
Nf4 {[%clk 0:02:53.4]} 25... Qf6 {[%clk 0:03:08.3]} 26. Nh5 {[%clk 0:02:41.3]}
26... Qg5 {[%clk 0:03:03.9]} 27. Ng3 {[%clk 0:02:37.8]} 27... Rc4 {[%clk
0:02:57.1]} 28. f4 {[%clk 0:02:25]} 28... Qxg3 {[%clk 0:02:54.7]} 29. fxe5
{[%clk 0:02:21.1]} 29... Rxc1 {[%clk 0:02:53.2]} 30. Rxc1 {[%clk 0:02:19.5]}
30... Qxe5 {[%clk 0:02:51.4]} 31. Rxc6 {[%clk 0:02:17.5]} 31... bxc6 {[%clk
0:02:36.1]} 0-1

[Event "Live Chess"]
[Site "Chess.com"]
[Date "2023.05.21"]
[Round "-"]
[White "grillage"]
[Black "ThatGuyNamedJeff"]
[Result "1-0"]
[WhiteElo "1803"]
[BlackElo "1569"]
[TimeControl "300"]
[EndTime "18:17:48 PDT"]
[Termination "grillage won by checkmate"]

1. d4 {[%clk 0:04:58.9]} 1... Nf6 {[%clk 0:04:58.8]} 2. Nc3 {[%clk 0:04:57.1]}
2... d5 {[%clk 0:04:57]} 3. Bf4 {[%clk 0:04:55.4]} 3... g6 {[%clk 0:04:56.1]} 4.
e3 {[%clk 0:04:49.8]} 4... Bg7 {[%clk 0:04:55.7]} 5. Nf3 {[%clk 0:04:48.3]} 5...
O-O {[%clk 0:04:55.2]} 6. h4 {[%clk 0:04:46.7]} 6... Nc6 {[%clk 0:04:51]} 7. Qd2
{[%clk 0:04:38.9]} 7... Bg4 {[%clk 0:04:40.7]} 8. Ne5 {[%clk 0:04:37.1]} 8...
Nxe5 {[%clk 0:04:29.3]} 9. Bxe5 {[%clk 0:04:35.8]} 9... h5 {[%clk 0:04:06]} 10.
f3 {[%clk 0:04:32.6]} 10... Bf5 {[%clk 0:03:59.3]} 11. Be2 {[%clk 0:04:28.3]}
11... Bh6 {[%clk 0:03:30.3]} 12. O-O-O {[%clk 0:04:16]} 12... Nd7 {[%clk
0:03:14.7]} 13. Bf4 {[%clk 0:04:06.2]} 13... Bxf4 {[%clk 0:03:07.1]} 14. exf4
{[%clk 0:04:04.8]} 14... Nb6 {[%clk 0:03:02.9]} 15. g4 {[%clk 0:04:02.1]} 15...
hxg4 {[%clk 0:02:55.8]} 16. fxg4 {[%clk 0:04:01]} 16... Bd7 {[%clk 0:02:45.8]}
17. h5 {[%clk 0:03:58.2]} 17... Kg7 {[%clk 0:02:41.6]} 18. hxg6 {[%clk
0:03:55.5]} 18... fxg6 {[%clk 0:02:40.8]} 19. Qe3 {[%clk 0:03:41.1]} 19... Nc4
{[%clk 0:02:34.6]} 20. Bxc4 {[%clk 0:03:36.7]} 20... dxc4 {[%clk 0:02:33.8]} 21.
Qe5+ {[%clk 0:03:25.7]} 21... Kf7 {[%clk 0:02:31.5]} 22. Rh7+ {[%clk 0:03:21.9]}
22... Ke8 {[%clk 0:02:30.7]} 23. Re1 {[%clk 0:03:13]} 23... e6 {[%clk
0:01:45.7]} 24. d5 {[%clk 0:03:06.5]} 24... Qf6 {[%clk 0:01:27.2]} 25. Qxf6
{[%clk 0:03:00]} 25... Rxf6 {[%clk 0:01:26.3]} 26. dxe6 {[%clk 0:02:48.7]} 26...
Bc6 {[%clk 0:00:47.7]} 27. Rh8+ {[%clk 0:02:25.7]} 27... Rf8 {[%clk 0:00:46]}
28. Rxf8+ {[%clk 0:02:24.6]} 28... Kxf8 {[%clk 0:00:45.3]} 29. f5 {[%clk
0:02:23.3]} 29... gxf5 {[%clk 0:00:39.1]} 30. gxf5 {[%clk 0:02:22.3]} 30... Ke7
{[%clk 0:00:38.6]} 31. Rg1 {[%clk 0:02:10.8]} 31... Kf6 {[%clk 0:00:18.8]} 32.
Rf1 {[%clk 0:02:04.5]} 32... Re8 {[%clk 0:00:17.3]} 33. Kd2 {[%clk 0:02:01.2]}
33... b5 {[%clk 0:00:15]} 34. Ke3 {[%clk 0:01:59.2]} 34... Rg8 {[%clk
0:00:13.9]} 35. Ne4+ {[%clk 0:01:56.6]} 35... Ke5 {[%clk 0:00:12.9]} 36. Nc5
{[%clk 0:01:36]} 36... Kd5 {[%clk 0:00:11.8]} 37. b4 {[%clk 0:01:28.4]} 37...
Rg3+ {[%clk 0:00:11.7]} 38. Kf4 {[%clk 0:01:25.4]} 38... Rg2 {[%clk 0:00:11.2]}
39. Rd1+ {[%clk 0:01:17.6]} 39... Rd2 {[%clk 0:00:07]} 40. Rxd2# {[%clk
0:01:17]} 1-0

[Event "Live Chess"]
[Site "Chess.com"]
[Date "2023.05.21"]
[Round "-"]
[White "LanceMaster23"]
[Black "Olisingapore"]
[Result "1-0"]
[WhiteElo "1937"]
[BlackElo "1795"]
[TimeControl "300"]
[EndTime "18:17:57 PDT"]
[Termination "LanceMaster23 won on time"]

1. f3 {[%clk 0:04:59.2]} 1... d5 {[%clk 0:04:58.4]} 2. e3 {[%clk 0:04:53.1]}
2... c5 {[%clk 0:04:54.1]} 3. d4 {[%clk 0:04:51.8]} 3... Nc6 {[%clk 0:04:51.6]}
4. Bb5 {[%clk 0:04:50.2]} 4... Bf5 {[%clk 0:04:42.7]} 5. c3 {[%clk 0:04:47.2]}
5... e6 {[%clk 0:04:39.8]} 6. Ne2 {[%clk 0:04:42.9]} 6... Nf6 {[%clk 0:04:38.9]}
7. Ng3 {[%clk 0:04:41.1]} 7... a6 {[%clk 0:04:32]} 8. Ba4 {[%clk 0:04:39.2]}
8... b5 {[%clk 0:04:30.2]} 9. Bc2 {[%clk 0:04:38.4]} 9... Bxc2 {[%clk
0:04:28.6]} 10. Qxc2 {[%clk 0:04:38.3]} 10... Bd6 {[%clk 0:04:23.6]} 11. Nd2
{[%clk 0:04:31.4]} 11... O-O {[%clk 0:04:22.4]} 12. dxc5 {[%clk 0:04:22.6]}
12... Bxc5 {[%clk 0:04:21.1]} 13. Nb3 {[%clk 0:04:21.1]} 13... Qb6 {[%clk
0:04:18.1]} 14. Nd4 {[%clk 0:04:19.4]} 14... Nxd4 {[%clk 0:04:13.9]} 15. exd4
{[%clk 0:04:18.6]} 15... Bd6 {[%clk 0:04:12.8]} 16. a3 {[%clk 0:04:14.8]} 16...
Rac8 {[%clk 0:04:08.5]} 17. Qd3 {[%clk 0:04:07.8]} 17... Rfe8 {[%clk 0:03:52.6]}
18. O-O {[%clk 0:04:02.2]} 18... Qc7 {[%clk 0:03:48]} 19. f4 {[%clk 0:03:50.8]}
19... Ng4 {[%clk 0:03:38]} 20. Bd2 {[%clk 0:03:36.5]} 20... Nf6 {[%clk
0:03:36.7]} 21. Rae1 {[%clk 0:03:29.6]} 21... Ne4 {[%clk 0:03:35]} 22. Nxe4
{[%clk 0:03:26.4]} 22... dxe4 {[%clk 0:03:34.9]} 23. Qxe4 {[%clk 0:03:19.4]}
23... g6 {[%clk 0:03:17.9]} 24. Qf3 {[%clk 0:02:48]} 24... Qc4 {[%clk
0:02:55.1]} 25. Re2 {[%clk 0:02:37.2]} 25... Qa2 {[%clk 0:02:48.4]} 26. Bc1
{[%clk 0:02:36.1]} 26... Qc4 {[%clk 0:02:46.3]} 27. Rfe1 {[%clk 0:02:34.6]}
27... a5 {[%clk 0:02:41.7]} 28. g4 {[%clk 0:02:21.7]} 28... b4 {[%clk
0:02:37.9]} 29. axb4 {[%clk 0:02:20.7]} 29... axb4 {[%clk 0:02:37.8]} 30. f5
{[%clk 0:02:19.8]} 30... bxc3 {[%clk 0:02:24.4]} 31. fxe6 {[%clk 0:02:15.7]}
31... fxe6 {[%clk 0:02:13]} 32. bxc3 {[%clk 0:02:11.8]} 32... Qxc3 {[%clk
0:02:08.4]} 33. Qxc3 {[%clk 0:02:04.2]} 33... Rxc3 {[%clk 0:02:07]} 34. Rxe6
{[%clk 0:01:57.7]} 34... Rxe6 {[%clk 0:02:06]} 35. Rxe6 {[%clk 0:01:57.2]} 35...
Rxc1+ {[%clk 0:02:04.9]} 36. Kf2 {[%clk 0:01:44.4]} 36... Bxh2 {[%clk
0:02:01.1]} 37. Re7 {[%clk 0:01:38]} 37... Rd1 {[%clk 0:01:50.9]} 38. Rd7 {[%clk
0:01:31.9]} 38... Rg1 {[%clk 0:01:29.8]} 39. Kf3 {[%clk 0:01:20.6]} 39... Rg3+
{[%clk 0:01:28.2]} 40. Kf4 {[%clk 0:01:14.6]} 40... Ra3+ {[%clk 0:01:23.9]} 41.
Kg5 {[%clk 0:01:09.1]} 41... Ra5+ {[%clk 0:01:17.9]} 42. Kf6 {[%clk 0:01:06.5]}
42... Ra6+ {[%clk 0:00:59.6]} 43. Ke7 {[%clk 0:01:04.1]} 43... Bf4 {[%clk
0:00:56]} 44. Rb7 {[%clk 0:00:25.6]} 44... Bg5+ {[%clk 0:00:34.2]} 45. Kd7
{[%clk 0:00:23.8]} 45... Ra8 {[%clk 0:00:28.3]} 46. d5 {[%clk 0:00:22.1]} 46...
Rd8+ {[%clk 0:00:26.9]} 47. Ke6 {[%clk 0:00:21.8]} 47... Re8+ {[%clk 0:00:19.5]}
48. Kd7 {[%clk 0:00:20.7]} 48... Kf8 {[%clk 0:00:18.1]} 49. d6 {[%clk
0:00:18.9]} 49... Ra8 {[%clk 0:00:16]} 50. Ke6 {[%clk 0:00:17.3]} 50... Re8+
{[%clk 0:00:15]} 51. Kd7 {[%clk 0:00:15.6]} 51... Rd8+ {[%clk 0:00:14.4]} 52.
Kc7 {[%clk 0:00:15.1]} 52... Re8 {[%clk 0:00:12.9]} 53. d7 {[%clk 0:00:14]}
53... Re7 {[%clk 0:00:11.8]} 54. Rb8+ {[%clk 0:00:13.6]} 54... Kf7 {[%clk
0:00:10.5]} 55. Rb3 {[%clk 0:00:11.1]} 55... Bf4+ {[%clk 0:00:09.8]} 56. Kc6
{[%clk 0:00:09.8]} 56... Re6+ {[%clk 0:00:08.4]} 57. Kb7 {[%clk 0:00:09]} 57...
Rd6 {[%clk 0:00:06.5]} 58. Kc8 {[%clk 0:00:07]} 58... Rc6+ {[%clk 0:00:03.4]}
59. Kb7 {[%clk 0:00:06.7]} 59... Re6 {[%clk 0:00:02.7]} 60. d8=Q {[%clk
0:00:05.7]} 60... Re7+ {[%clk 0:00:02.2]} 61. Kc8 {[%clk 0:00:04.3]} 61... Rc7+
{[%clk 0:00:00.5]} 62. Qxc7+ {[%clk 0:00:03.8]} 1-0

[Event "Live Chess"]
[Site "Chess.com"]
[Date "2023.05.21"]
[Round "-"]
[White "Tilbs_12"]
[Black "worldchessleaguelive"]
[Result "1/2-1/2"]
[WhiteElo "1543"]
[BlackElo "1368"]
[TimeControl "300"]
[EndTime "18:18:18 PDT"]
[Termination "Game drawn by stalemate"]

1. e4 {[%clk 0:04:58.3]} 1... d5 {[%clk 0:04:58.5]} 2. exd5 {[%clk 0:04:57.3]}
2... Qxd5 {[%clk 0:04:57.3]} 3. Nc3 {[%clk 0:04:55.3]} 3... Qd8 {[%clk
0:04:56.2]} 4. d4 {[%clk 0:04:54.5]} 4... Nf6 {[%clk 0:04:55.4]} 5. Nf3 {[%clk
0:04:53.3]} 5... e6 {[%clk 0:04:54.8]} 6. Bc4 {[%clk 0:04:52.3]} 6... Be7 {[%clk
0:04:54.2]} 7. Bf4 {[%clk 0:04:51.4]} 7... O-O {[%clk 0:04:53.8]} 8. O-O {[%clk
0:04:50.2]} 8... c6 {[%clk 0:04:53.2]} 9. Re1 {[%clk 0:04:49.2]} 9... b5 {[%clk
0:04:52.2]} 10. Bb3 {[%clk 0:04:47.4]} 10... a5 {[%clk 0:04:51.5]} 11. a4 {[%clk
0:04:45.6]} 11... b4 {[%clk 0:04:49.3]} 12. Ne4 {[%clk 0:04:44.4]} 12... Nbd7
{[%clk 0:04:44.2]} 13. c3 {[%clk 0:04:39.4]} 13... Nxe4 {[%clk 0:04:42.3]} 14.
Rxe4 {[%clk 0:04:37.5]} 14... Nf6 {[%clk 0:04:41.9]} 15. Re2 {[%clk 0:04:34.7]}
15... Ba6 {[%clk 0:04:39.5]} 16. Rd2 {[%clk 0:04:33.1]} 16... Nd5 {[%clk
0:04:37.9]} 17. Bxd5 {[%clk 0:04:28.6]} 17... cxd5 {[%clk 0:04:33.2]} 18. Ne5
{[%clk 0:04:19.8]} 18... Rc8 {[%clk 0:04:26.6]} 19. Rc2 {[%clk 0:04:11.1]} 19...
f6 {[%clk 0:04:16.7]} 20. Nf3 {[%clk 0:04:08.5]} 20... b3 {[%clk 0:04:09.4]} 21.
Rd2 {[%clk 0:04:04.7]} 21... Bc4 {[%clk 0:04:08]} 22. Ne1 {[%clk 0:03:59.2]}
22... g5 {[%clk 0:04:05.4]} 23. Bg3 {[%clk 0:03:57.7]} 23... Bd6 {[%clk
0:03:59.9]} 24. Nd3 {[%clk 0:03:55.5]} 24... Bxg3 {[%clk 0:03:58.8]} 25. fxg3
{[%clk 0:03:52.1]} 25... Qd6 {[%clk 0:03:48.1]} 26. Nc5 {[%clk 0:03:50.7]} 26...
Rxc5 {[%clk 0:03:47]} 27. dxc5 {[%clk 0:03:49.2]} 27... Qxc5+ {[%clk 0:03:46.3]}
28. Kh1 {[%clk 0:03:47.8]} 28... e5 {[%clk 0:03:35.5]} 29. Qf3 {[%clk
0:03:34.4]} 29... e4 {[%clk 0:03:32.5]} 30. Qf5 {[%clk 0:03:26.6]} 30... e3
{[%clk 0:03:23.3]} 31. Rd4 {[%clk 0:03:25.2]} 31... e2 {[%clk 0:03:15.3]} 32.
Re1 {[%clk 0:03:23]} 32... Kg7 {[%clk 0:03:02.7]} 33. Qe6 {[%clk 0:03:13.7]}
33... Rf7 {[%clk 0:02:53.2]} 34. Rxe2 {[%clk 0:03:08]} 34... Bxe2 {[%clk
0:02:47.8]} 35. Qxe2 {[%clk 0:03:06.3]} 35... Re7 {[%clk 0:02:47.1]} 36. Qd2
{[%clk 0:03:03.4]} 36... Re4 {[%clk 0:02:31.7]} 37. h3 {[%clk 0:02:53.3]} 37...
Rxd4 {[%clk 0:02:29.3]} 38. Qxd4 {[%clk 0:02:50.8]} 38... Qxd4 {[%clk
0:02:21.2]} 39. cxd4 {[%clk 0:02:49.7]} 39... Kg6 {[%clk 0:02:18.5]} 40. Kg1
{[%clk 0:02:49.3]} 40... Kf5 {[%clk 0:02:17.8]} 41. Kf2 {[%clk 0:02:47.4]} 41...
Ke4 {[%clk 0:02:17]} 42. Ke2 {[%clk 0:02:45.4]} 42... Kxd4 {[%clk 0:02:16.2]}
43. Kd2 {[%clk 0:02:45.1]} 43... Kc4 {[%clk 0:02:15.2]} 44. h4 {[%clk
0:02:36.9]} 44... g4 {[%clk 0:02:09.2]} 45. Ke3 {[%clk 0:02:32]} 45... d4+
{[%clk 0:02:06.8]} 46. Kd2 {[%clk 0:02:30.8]} 46... h5 {[%clk 0:02:04.5]} 47.
Ke2 {[%clk 0:02:27.1]} 47... d3+ {[%clk 0:02:01.5]} 48. Kd2 {[%clk 0:02:26.1]}
48... Kd4 {[%clk 0:01:57.5]} 49. Kd1 {[%clk 0:02:22.6]} 49... Ke3 {[%clk
0:01:56.4]} 50. Ke1 {[%clk 0:02:21.9]} 50... f5 {[%clk 0:01:49.9]} 51. Kd1
{[%clk 0:02:18.2]} 51... d2 {[%clk 0:01:48.7]} 1/2-1/2

[Event "Live Chess"]
[Site "Chess.com"]
[Date "2023.05.21"]
[Round "-"]
[White "Cimon"]
[Black "luckywookie"]
[Result "1-0"]
[WhiteElo "1853"]
[BlackElo "756"]
[TimeControl "300"]
[EndTime "18:18:22 PDT"]
[Termination "Cimon won on time"]

1. Nf3 {[%clk 0:04:58.3]} 1... c6 {[%clk 0:04:58.5]} 2. d4 {[%clk 0:04:56.8]}
2... d5 {[%clk 0:04:57.5]} 3. c4 {[%clk 0:04:55.6]} 3... g6 {[%clk 0:04:52.3]}
4. Nc3 {[%clk 0:04:54.1]} 4... Bg7 {[%clk 0:04:51.6]} 5. e4 {[%clk 0:04:50.9]}
5... e6 {[%clk 0:04:48.9]} 6. Be2 {[%clk 0:04:45.6]} 6... Nd7 {[%clk 0:04:44.5]}
7. O-O {[%clk 0:04:43.6]} 7... Ne7 {[%clk 0:04:43.1]} 8. Bg5 {[%clk 0:04:41]}
8... O-O {[%clk 0:04:41.2]} 9. Qd2 {[%clk 0:04:30]} 9... Kh8 {[%clk 0:04:20.9]}
10. Rac1 {[%clk 0:04:17.5]} 10... Nb6 {[%clk 0:04:05.2]} 11. b3 {[%clk
0:04:12.5]} 11... Qd7 {[%clk 0:03:45.7]} 12. c5 {[%clk 0:04:06.6]} 12... dxe4
{[%clk 0:03:34.9]} 13. Nxe4 {[%clk 0:04:00.6]} 13... Nbd5 {[%clk 0:03:30.4]} 14.
Nd6 {[%clk 0:03:56]} 14... Ng8 {[%clk 0:03:21.9]} 15. b4 {[%clk 0:03:42.5]}
15... f6 {[%clk 0:03:19.6]} 16. Bh4 {[%clk 0:03:38.3]} 16... Bh6 {[%clk
0:03:18]} 17. Qb2 {[%clk 0:03:30.4]} 17... Bxc1 {[%clk 0:03:15.9]} 18. Rxc1
{[%clk 0:03:28.6]} 18... g5 {[%clk 0:03:01.8]} 19. Bg3 {[%clk 0:03:23.5]} 19...
Nf4 {[%clk 0:02:41.5]} 20. Bxf4 {[%clk 0:03:18.4]} 20... gxf4 {[%clk 0:02:39.7]}
21. Bc4 {[%clk 0:03:14.9]} 21... Qg7 {[%clk 0:02:26.6]} 22. Nxc8 {[%clk
0:02:55.6]} 22... Raxc8 {[%clk 0:02:25]} 23. Bxe6 {[%clk 0:02:54.7]} 23... Rce8
{[%clk 0:02:20.3]} 24. Qb3 {[%clk 0:02:43.4]} 24... Nh6 {[%clk 0:01:50]} 25. h3
{[%clk 0:02:29.3]} 25... Re7 {[%clk 0:01:34.4]} 26. d5 {[%clk 0:02:15]} 26...
cxd5 {[%clk 0:01:31.3]} 27. Bxd5 {[%clk 0:02:07.2]} 27... Rfe8 {[%clk
0:01:01.4]} 28. b5 {[%clk 0:01:56]} 28... Re2 {[%clk 0:00:29.9]} 29. c6 {[%clk
0:01:39.5]} 29... Rxf2 {[%clk 0:00:18.2]} 30. Kxf2 {[%clk 0:01:30.8]} 30... Qg3+
{[%clk 0:00:17.1]} 31. Kg1 {[%clk 0:01:27.4]} 31... Nf5 {[%clk 0:00:12.5]} 32.
Qc3 {[%clk 0:01:12.4]} 32... Ne3 {[%clk 0:00:11.5]} 33. Qxf6+ {[%clk 0:01:10.5]}
33... Qg7 {[%clk 0:00:07.3]} 34. Qxg7+ {[%clk 0:01:09.2]} 34... Kxg7 {[%clk
0:00:06.6]} 35. c7 {[%clk 0:01:06.7]} 35... Rc8 {[%clk 0:00:05]} 36. Bxb7 {[%clk
0:01:04.6]} 36... Nd5 {[%clk 0:00:04.7]} 37. Bxd5 {[%clk 0:01:02.8]} 37... Rxc7
{[%clk 0:00:03.2]} 38. Rxc7+ {[%clk 0:01:01.3]} 38... Kf6 {[%clk 0:00:01.6]} 39.
Rxa7 {[%clk 0:01:00]} 1-0